bitfinex/quotes_SOLUSD_20230703
["timestamp","ask_amount","ask_price","bid_price","bid_amount"]
[1688342907279,21.688,19.504,19.494,77.561]
[1688342908291,21.686,19.505,19.494,77.561]
[1688342908493,21.686,19.505,19.498,21.694]
[1688342913691,21.685,19.508,19.498,21.694]
[1688342914000,41.684,19.507,19.498,77.545]
[1688342916219,20.0,19.507,19.498,77.545]
[1688342916396,20.0,19.509,19.499,55.0]
[1688342916705,1.0304582,19.51,19.502,179.416]
[1688342917007,1.0304582,19.51,19.503,55.0]
[1688342917199,1.0304582,19.51,19.505,179.387]
[1688342917512,1.0304582,19.51,19.507,77.509]
[1688342917801,1.0304582,19.51,19.509,77.502]
[1688342917986,1.0304582,19.51,19.509,132.502]
[1688342918700,55.788,19.521,19.509,132.502]
[1688342918701,21.669,19.521,19.509,132.502]
[1688342918896,55.77,19.527,19.51,55.0]
[1688342919102,21.669,19.521,19.509,55.819]
[1688342919405,21.669,19.521,19.507,21.683]
[1688342919591,21.669,19.521,19.508,21.683]
[1688342919992,20.0,19.52,19.508,21.683]
[1688342920192,21.674,19.517,19.508,21.683]
[1688342920397,20.0,19.516,19.508,21.683]
[1688342920602,55.79,19.52,19.508,77.506]
[1688342920806,20.0,19.519,19.509,55.0]
[1688342921108,21.673,19.517,19.506,101.863]
[1688342921412,55.79,19.52,19.509,21.681]
[1688342921413,21.676,19.514,19.509,21.681]
[1688342921794,21.676,19.514,19.506,21.684]
[1688342922001,21.676,19.514,19.502,55.837]
[1688342922307,21.676,19.514,19.503,55.0]
[1688342922892,21.676,19.514,19.507,21.684]
[1688342926104,21.676,19.514,19.501,55.841]
[1688342926317,21.77,19.51,19.498,21.694]
[1688342926506,77.512,19.507,19.496,21.696]
[1688342926695,77.512,19.507,19.491,150.8405]
[1688342927010,77.512,19.507,19.494,21.698]
[1688342927011,21.687,19.505,19.494,21.698]
[1688342927612,77.518,19.505,19.494,21.698]
[1688342934217,21.687,19.505,19.495,55.0]
[1688342934412,77.518,19.505,19.495,76.696]
[1688342936814,21.687,19.505,19.495,132.556]
[1688342938919,21.687,19.505,19.495,76.696]
[1688342939417,21.687,19.505,19.495,21.696]
[1688342941022,21.687,19.505,19.491,94.9695]
[1688342941204,31.98041268,19.505,19.491,94.9695]
[1688342941405,10.29341268,19.504,19.491,94.9695]
[1688342941621,21.692,19.501,19.493,21.7]
[1688342950435,21.692,19.501,19.48,109.4]
[1688342950436,21.692,19.501,19.487,55.88]
[1688342950730,96.9,19.5,19.485,21.708]
[1688342951023,179.476,19.496,19.481,83.4033]
[1688342951227,107.19341268,19.5,19.482,21.711]
[1688342951228,21.702,19.491,19.482,21.711]
[1688342952418,21.702,19.491,19.482,20.211]
[1688342953528,21.702,19.491,19.481,83.4033]
[1688342955116,21.702,19.491,19.481,105.1163]
[1688342960020,55.871,19.495,19.482,55.0]
[1688342960335,157.763,19.498,19.485,21.708]
[1688342960520,20.0,19.497,19.485,21.708]
[1688342960924,21.699,19.494,19.485,21.708]
[1688342961427,21.699,19.494,19.488,21.705]
[1688342964424,20.0,19.497,19.488,21.705]
[1688342964622,20.0,19.5,19.489,55.0]
[1688342964824,21.699,19.5,19.492,21.7]
[1688342965134,55.837,19.504,19.492,77.569]
[1688342966235,21.692,19.5,19.492,77.569]
[1688342966640,20.0,19.499,19.48,21.78]
[1688342966829,21.699,19.494,19.486,55.885]
[1688342967145,21.699,19.494,19.486,21.707]
[1688342972237,21.697,19.496,19.487,55.0]
[1688342972437,21.697,19.496,19.489,21.703]
[1688342972936,20.0,19.499,19.489,21.703]
[1688342973140,21.696,19.497,19.489,21.703]
[1688342973349,20.0,19.496,19.489,21.703]
[1688342974644,97.554,19.496,19.482,99.6125]
[1688342974846,97.554,19.496,19.486,21.707]
[1688342977939,97.554,19.496,19.482,99.6125]
[1688342978254,97.554,19.496,19.481,55.898]
[1688342978550,97.554,19.496,19.482,55.0]
[1688342979052,97.554,19.496,19.484,21.709]
[1688342979554,97.554,19.496,19.485,55.0]
[1688342979747,97.554,19.496,19.488,21.705]
[1688342980554,97.554,19.496,19.487,21.706]
[1688342986949,41.697,19.496,19.487,21.706]
[1688342987245,41.697,19.496,19.49,21.702]
[1688342987454,21.697,19.496,19.49,21.702]
[1688342987756,101.891,19.502,19.49,21.702]
[1688342987757,21.694,19.498,19.49,21.702]
[1688342992954,21.693,19.499,19.49,21.702]
[1688342995056,26.81833833,19.505,19.49,21.702]
[1688342995252,21.689,19.503,19.495,77.556]
[1688342997455,21.689,19.503,19.495,21.697]
[1688342997642,21.689,19.503,19.494,21.698]
[1688342997848,21.689,19.503,19.493,21.699]
[1688343001861,21.689,19.503,19.492,21.7]
[1688343001862,101.81711999,19.502,19.492,21.7]
[1688343002159,21.693,19.499,19.491,21.702]
[1688343002354,21.696,19.496,19.491,21.702]
[1688343003454,21.695,19.498,19.491,21.702]
[1688343003654,21.693,19.499,19.491,21.702]
[1688343003971,77.52,19.505,19.491,21.702]
[1688343004170,26.81326908,19.508,19.492,55.0]
[1688343004357,21.687,19.505,19.496,21.695]
[1688343009170,21.687,19.505,19.497,55.0]
[1688343009372,21.687,19.505,19.499,21.692]
[1688343010869,21.687,19.505,19.498,21.693]
[1688343012357,55.826,19.507,19.499,55.0]
[1688343012358,21.685,19.507,19.499,55.0]
[1688343012558,21.683,19.508,19.503,21.687]
[1688343014066,21.683,19.508,19.501,21.69]
[1688343014271,21.683,19.508,19.503,21.688]
[1688343015379,21.683,19.508,19.501,21.691]
[1688343019891,21.682,19.51,19.501,77.534]
[1688343021777,21.682,19.51,19.501,21.691]
[1688343022388,77.499,19.51,19.501,21.691]
[1688343024696,21.682,19.51,19.501,21.691]
[1688343029893,20.0,19.509,19.501,21.691]
[1688343030187,20.0,19.509,19.497,55.852]
[1688343030188,21.684,19.507,19.5,21.692]
[1688343030903,21.684,19.507,19.499,21.693]
[1688343032503,21.684,19.507,19.498,21.694]
[1688343033492,55.0,19.506,19.491,93.7729]
[1688343033694,179.42,19.502,19.491,93.7729]
[1688343034005,65.29753752,19.501,19.481,157.893]
[1688343034190,77.556,19.496,19.486,21.707]
[1688343034392,77.556,19.496,19.487,20.0]
[1688343035388,21.697,19.496,19.487,21.706]
[1688343035795,77.554,19.496,19.487,21.706]
[1688343035996,21.697,19.496,19.487,21.706]
[1688343039516,21.695,19.497,19.488,55.0]
[1688343039692,55.838,19.503,19.491,21.702]
[1688343040197,55.838,19.503,19.495,21.697]
[1688343040198,21.693,19.5,19.495,21.697]
[1688343040503,21.693,19.5,19.494,21.698]
[1688343040699,21.693,19.5,19.493,21.699]
[1688343040896,21.69,19.502,19.494,77.561]
[1688343041095,21.689,19.503,19.498,21.694]
[1688343044416,75.829,19.509,19.498,21.694]
[1688343044711,75.829,19.509,19.497,55.852]
[1688343044712,21.685,19.507,19.502,21.69]
[1688343044914,26.80776276,19.514,19.502,21.69]
[1688343045102,101.813,19.517,19.502,21.69]
[1688343045103,55.805,19.515,19.507,21.683]
[1688343045415,21.678,19.513,19.505,21.686]
[1688343050820,21.678,19.513,19.502,55.84]
[1688343050821,21.678,19.513,19.504,21.687]
[1688343051019,21.678,19.513,19.503,21.688]
[1688343051216,21.678,19.513,19.501,97.3882]
[1688343051420,21.678,19.513,19.496,55.855]
[1688343051625,55.0,19.512,19.498,21.694]
[1688343051915,21.685,19.516,19.498,21.694]
[1688343051916,77.506,19.508,19.498,21.694]
[1688343053309,21.683,19.508,19.498,21.694]
[1688343053509,21.683,19.508,19.499,55.0]
[1688343053703,21.683,19.508,19.501,21.69]
[1688343054519,77.506,19.508,19.499,21.693]
[1688343059728,21.683,19.508,19.499,21.693]
[1688343060232,21.683,19.508,19.502,21.689]
[1688343061928,21.683,19.508,19.498,55.85]
[1688343062119,21.683,19.508,19.496,101.914]
[1688343062427,21.683,19.508,19.497,75.0]
[1688343063228,21.683,19.508,19.5,21.692]
[1688343076235,21.682,19.509,19.5,21.692]
[1688343076442,21.682,19.509,19.501,55.0]
[1688343076620,21.682,19.509,19.503,21.688]
[1688343077134,21.68,19.511,19.503,21.688]
[1688343079324,21.68,19.511,19.502,21.689]
[1688343079644,77.494,19.511,19.502,21.689]
[1688343079936,77.494,19.511,19.501,21.69]
[1688343081137,21.68,19.511,19.501,21.69]
[1688343084635,21.88,19.51,19.501,21.69]
[1688343084942,21.684,19.508,19.501,21.69]
[1688343086033,21.681,19.51,19.501,77.533]
[1688343087833,21.681,19.51,19.504,21.687]
[1688343094155,21.679,19.512,19.504,21.687]
[1688343095847,21.675,19.515,19.508,21.683]
[1688343099733,77.478,19.515,19.506,21.685]
[1688343099953,77.478,19.515,19.504,21.687]
[1688343100153,77.478,19.515,19.503,21.688]
[1688343100450,77.478,19.515,19.502,21.689]
[1688343101245,21.86,19.51,19.49,47.41600013]
[1688343101447,77.523,19.504,19.493,21.699]
[1688343101647,77.523,19.504,19.492,21.7]
[1688343103155,77.523,19.504,19.49,21.92]
[1688343103361,77.523,19.504,19.486,21.706]
[1688343103362,77.558,19.495,19.486,21.706]
[1688343103549,21.697,19.496,19.49,21.702]
[1688343104132,21.695,19.497,19.49,21.702]
[1688343105963,77.716,19.501,19.49,21.702]
[1688343106170,112.17149068,19.504,19.491,55.0]
[1688343106171,55.836,19.504,19.491,55.0]
[1688343106460,55.828,19.507,19.494,21.697]
[1688343106644,55.828,19.507,19.493,55.865]
[1688343106645,21.688,19.504,19.497,21.694]
[1688343109551,55.828,19.508,19.497,21.694]
[1688343109853,32.18227969,19.516,19.503,21.688]
[1688343109854,55.814,19.512,19.503,21.688]
[1688343110062,21.77,19.52,19.503,21.688]
[1688343110063,55.796,19.518,19.503,21.688]
[1688343110242,21.677,19.514,19.503,21.688]
[1688343111748,20.677,19.514,19.503,21.688]
[1688343112263,111.592,19.518,19.503,21.688]
[1688343112264,55.796,19.518,19.503,21.688]
[1688343112561,10.23557218,19.521,19.507,77.508]
[1688343112562,21.674,19.516,19.507,77.508]
[1688343112952,21.674,19.516,19.51,21.68]
[1688343114459,20.174,19.516,19.51,21.68]
[1688343114948,21.674,19.52,19.51,21.68]
[1688343115156,21.674,19.516,19.51,21.68]
[1688343115355,21.674,19.516,19.503,55.835]
[1688343115757,77.474,19.516,19.506,21.684]
[1688343117058,21.674,19.516,19.506,21.684]
[1688343118356,21.673,19.517,19.506,21.684]
[1688343118667,763.65134278,19.536,19.501,90.9416]
[1688343118668,55.794,19.523,19.512,21.678]
[1688343118854,20.0,19.522,19.512,21.678]
[1688343119057,21.669,19.521,19.512,21.678]
[1688343119267,20.0,19.52,19.512,21.678]
[1688343119468,21.67,19.52,19.512,21.678]
[1688343119667,20.0,19.519,19.512,21.678]
[1688343120854,21.67,19.52,19.512,21.678]
[1688343121273,21.668,19.521,19.512,21.678]
[1688343122268,21.665,19.524,19.512,123.512]
[1688343122573,21.665,19.524,19.509,101.847]
[1688343122751,21.665,19.524,19.51,55.0]
[1688343122954,21.665,19.524,19.513,21.677]
[1688343123175,21.665,19.524,19.507,55.0]
[1688343123176,21.665,19.524,19.507,55.823]
[1688343123375,20.0,19.523,19.507,55.823]
[1688343123579,21.672,19.519,19.511,21.68]
[1688343123872,20.0,19.518,19.511,21.68]
[1688343124076,41.672,19.518,19.511,21.68]
[1688343125054,21.67,19.52,19.511,77.494]
[1688343125375,20.0,19.519,19.511,77.494]
[1688343125670,41.672,19.519,19.511,77.494]
[1688343127478,101.863,19.524,19.511,77.494]
[1688343127674,55.775,19.525,19.511,77.494]
[1688343128151,21.669,19.521,19.511,77.494]
[1688343129472,21.669,19.521,19.512,55.0]
[1688343129678,21.669,19.521,19.514,21.675]
[1688343138277,157.54,19.526,19.507,55.824]
[1688343138278,21.672,19.518,19.507,55.824]
[1688343138470,20.0,19.517,19.507,55.824]
[1688343138665,20.0,19.517,19.511,21.679]
[1688343139184,20.0,19.522,19.511,21.679]
[1688343139371,21.671,19.519,19.511,21.679]
[1688343139675,21.674,19.516,19.511,21.679]
[1688343140961,111.572,19.521,19.511,21.679]
[1688343141167,21.671,19.519,19.511,21.679]
[1688343141365,20.0,19.518,19.511,21.679]
[1688343141760,41.672,19.518,19.511,21.679]
[1688343145463,55.783,19.522,19.512,55.0]
[1688343145662,26.11726262,19.526,19.515,21.675]
[1688343145663,21.669,19.521,19.515,21.675]
[1688343145868,21.667,19.523,19.515,21.675]
[1688343146071,21.667,19.523,19.513,21.677]
[1688343146268,21.667,19.523,19.511,21.679]
[1688343146765,77.49,19.523,19.511,21.679]
[1688343147379,55.0,19.522,19.511,21.679]
[1688343147691,21.671,19.519,19.511,21.679]
[1688343153285,21.67,19.52,19.511,21.679]
[1688343153784,55.782,19.524,19.511,21.679]
[1688343153973,55.773,19.526,19.511,21.679]
[1688343154174,55.0,19.525,19.511,21.679]
[1688343154483,55.773,19.526,19.511,21.679]
[1688343154784,111.546,19.526,19.511,21.679]
[1688343155285,21.668,19.522,19.511,21.679]
[1688343155469,55.773,19.526,19.512,55.0]
[1688343155673,21.665,19.525,19.516,77.472]
[1688343156600,47.38587602,19.53,19.516,77.472]
[1688343156775,55.766,19.529,19.516,77.472]
[1688343157086,41.161,19.528,19.516,77.472]
[1688343161868,21.161,19.528,19.516,77.472]
[1688343162071,20.0,19.527,19.516,77.472]
[1688343162481,21.662,19.527,19.516,77.472]
[1688343165596,21.662,19.527,19.516,21.673]
[1688343166076,21.662,19.527,19.513,94.6664]
[1688343166277,77.449,19.523,19.513,116.3434]
[1688343166476,77.449,19.523,19.513,21.677]
[1688343169495,55.0,19.522,19.513,21.677]
[1688343169693,21.67,19.52,19.513,21.677]
[1688343171188,109.25257218,19.526,19.513,21.677]
[1688343171385,21.668,19.522,19.513,21.677]
[1688343174591,21.668,19.526,19.514,55.0]
[1688343174786,21.666,19.524,19.517,21.672]
[1688343177093,21.664,19.525,19.517,21.672]
[1688343177706,55.76,19.53,19.517,77.469]
[1688343177880,20.0,19.529,19.517,77.469]
[1688343178905,21.662,19.527,19.517,77.469]
[1688343179507,21.662,19.527,19.517,21.672]
[1688343187999,77.43,19.527,19.517,21.672]
[1688343188517,21.662,19.527,19.52,21.669]
[1688343190695,21.662,19.527,19.518,21.671]
[1688343195112,21.662,19.527,19.518,77.465]
[1688343197620,21.662,19.527,19.518,21.671]
[1688343201020,21.662,19.527,19.516,21.673]
[1688343203829,21.662,19.527,19.516,77.473]
[1688343204004,21.662,19.527,19.516,21.673]
[1688343207013,20.0,19.529,19.515,91.1387]
[1688343207225,21.662,19.527,19.516,21.673]
[1688343209520,21.662,19.527,19.516,77.473]
[1688343210416,21.662,19.527,19.515,91.1387]
[1688343210417,21.662,19.527,19.52,21.67]
[1688343213224,55.76,19.531,19.52,21.67]
[1688343213425,21.658,19.531,19.52,77.458]
[1688343219724,21.658,19.531,19.52,99.348]
[1688343221334,21.658,19.531,19.52,77.458]
[1688343223333,21.658,19.531,19.521,55.0]
[1688343223535,21.658,19.531,19.524,21.665]
[1688343225736,21.657,19.532,19.524,21.665]
[1688343227317,77.396,19.537,19.524,77.442]
[1688343227517,21.65,19.538,19.53,21.658]
[1688343227721,55.728,19.542,19.53,21.658]
[1688343227722,21.653,19.536,19.53,21.658]
[1688343227925,21.653,19.536,19.52,21.89]
[1688343228128,77.396,19.536,19.526,21.662]
[1688343228340,77.396,19.536,19.527,21.661]
[1688343230436,77.396,19.536,19.52,21.89]
[1688343230437,20.0,19.535,19.51,47.08729194]
[1688343230628,20.0,19.535,19.517,21.672]
[1688343230629,21.663,19.526,19.517,21.672]
[1688343232441,21.663,19.526,19.51,21.87]
[1688343232442,31.89857218,19.526,19.512,21.678]
[1688343232626,55.0,19.525,19.511,21.679]
[1688343232940,77.455,19.521,19.511,21.679]
[1688343234836,77.455,19.521,19.51,21.91]
[1688343234837,77.455,19.521,19.509,21.681]
[1688343238634,21.669,19.521,19.509,21.681]
[1688343238841,21.669,19.521,19.513,21.677]
[1688343240619,21.668,19.522,19.514,55.0]
[1688343240925,21.668,19.522,19.516,21.674]
[1688343242440,55.773,19.526,19.516,21.674]
[1688343242637,21.665,19.525,19.517,55.0]
[1688343242832,21.665,19.525,19.52,21.669]
[1688343244244,55.756,19.532,19.52,21.669]
[1688343244421,77.412,19.532,19.524,21.665]
[1688343245024,77.412,19.532,19.522,21.666]
[1688343245227,77.412,19.532,19.518,55.793]
[1688343245228,77.412,19.532,19.523,21.666]
[1688343247441,21.656,19.532,19.523,21.666]
[1688343248534,21.656,19.532,19.524,55.0]
[1688343248739,21.656,19.532,19.526,21.662]
[1688343252353,55.74,19.537,19.526,21.662]
[1688343252651,21.653,19.536,19.526,77.433]
[1688343253953,21.653,19.536,19.526,77.36474304]
[1688343254953,77.396,19.536,19.526,21.59374304]
[1688343258064,77.396,19.536,19.525,99.6623]
[1688343258247,77.396,19.536,19.525,121.3263]
[1688343263259,21.653,19.536,19.529,21.66]
[1688343271456,21.653,19.536,19.53,55.0]
[1688343271773,21.653,19.536,19.531,21.657]
[1688343272161,21.653,19.536,19.527,55.768]
[1688343272464,21.653,19.536,19.528,76.66]
[1688343272465,21.153,19.536,19.528,76.66]
[1688343283570,21.153,19.536,19.51,22.0]
[1688343283571,115.7868897,19.535,19.51,22.0]
[1688343283781,179.181,19.528,19.515,21.675]
[1688343283970,179.181,19.528,19.514,98.0064]
[1688343283971,75.0,19.527,19.514,98.0064]
[1688343284289,179.219,19.524,19.51,21.68]
[1688343286776,179.219,19.524,19.511,76.679]
[1688343286969,189.45457218,19.524,19.511,76.679]
[1688343287164,179.219,19.524,19.506,98.0064]
[1688343287386,179.265,19.519,19.508,21.683]
[1688343288185,21.672,19.519,19.508,21.683]
[1688343288573,21.672,19.519,19.512,21.678]
[1688343289976,21.672,19.519,19.51,21.68]
[1688343292086,21.672,19.519,19.509,21.682]
[1688343292387,20.0,19.518,19.509,21.682]
[1688343292592,21.675,19.516,19.509,21.682]
[1688343292780,55.824,19.526,19.509,21.682]
[1688343292987,21.669,19.521,19.509,21.682]
[1688343294071,21.669,19.521,19.513,21.677]
[1688343295987,157.544,19.526,19.514,55.0]
[1688343295988,111.554,19.526,19.514,55.0]
[1688343296197,21.659,19.53,19.517,21.672]
[1688343296500,20.0,19.529,19.523,21.666]
[1688343296874,20.0,19.53,19.523,21.666]
[1688343297802,41.659,19.53,19.523,21.666]
[1688343300384,21.658,19.531,19.523,77.446]
[1688343300588,10.23557218,19.538,19.523,77.446]
[1688343300776,21.655,19.534,19.523,77.446]
[1688343302091,21.655,19.534,19.527,21.662]
[1688343302494,31.89057218,19.534,19.527,21.662]
[1688343303783,55.74,19.538,19.527,21.662]
[1688343303984,20.0,19.537,19.528,55.0]
[1688343304184,20.0,19.537,19.53,21.658]
[1688343304591,20.0,19.54,19.53,21.658]
[1688343304990,30.23557218,19.54,19.53,21.658]
[1688343305193,29.73557218,19.54,19.53,21.658]
[1688343306098,21.651,19.537,19.53,21.658]
[1688343306306,10.23557218,19.54,19.53,21.658]
[1688343306603,10.23557218,19.54,19.53,77.418]
[1688343307384,25.95181665,19.547,19.53,77.418]
[1688343307385,25.951817,19.542,19.53,77.418]
[1688343308080,10.23557218,19.546,19.531,55.0]
[1688343308401,21.643,19.545,19.535,77.396]
[1688343308905,31.87857218,19.545,19.535,77.396]
[1688343309303,21.643,19.545,19.535,77.396]
[1688343309483,10.23557218,19.544,19.535,77.396]
[1688343309692,31.87957218,19.544,19.535,77.396]
[1688343314201,10.23557218,19.544,19.535,77.396]
[1688343314503,10.23557218,19.544,19.536,55.0]
[1688343314707,21.88,19.546,19.538,179.082]
[1688343315007,21.88,19.546,19.539,55.0]
[1688343315192,21.88,19.56,19.539,55.0]
[1688343315193,21.88,19.56,19.541,179.057]
[1688343315397,20.0,19.559,19.541,179.057]
[1688343315598,21.88,19.555,19.541,179.057]
[1688343316088,43.512,19.555,19.541,179.057]
[1688343316886,43.512,19.555,19.545,77.356]
[1688343322220,21.88,19.555,19.545,77.356]
[1688343322390,85.91557218,19.559,19.545,77.356]
[1688343322391,21.63,19.556,19.545,77.356]
[1688343322791,21.629,19.557,19.545,77.356]
[1688343324113,21.629,19.557,19.546,55.0]
[1688343324309,21.629,19.557,19.549,21.637]
[1688343324510,43.257,19.558,19.549,21.637]
[1688343324700,20.0,19.557,19.549,21.637]
[1688343325598,41.629,19.557,19.549,21.637]
[1688343331722,20.0,19.557,19.549,21.637]
[1688343332020,20.0,19.558,19.549,21.637]
[1688343335337,43.257,19.56,19.549,21.637]
[1688343335613,43.257,19.56,19.553,77.327]
[1688343335812,21.623,19.562,19.553,77.327]
[1688343340009,55.66,19.565,19.553,77.327]
[1688343340209,21.622,19.563,19.553,77.327]
[1688343341309,21.622,19.564,19.553,77.327]
[1688343343110,21.625,19.56,19.553,77.327]
[1688343343314,21.624,19.561,19.553,77.327]
[1688343345624,80.6763729,19.568,19.553,77.327]
[1688343345825,75.0,19.567,19.553,77.327]
[1688343346212,21.62,19.566,19.553,77.327]
[1688343347427,150.0,19.567,19.554,55.0]
[1688343347428,20.0,19.567,19.554,55.0]
[1688343347633,20.0,19.567,19.557,178.907]
[1688343348329,21.616,19.569,19.557,178.907]
[1688343348524,20.0,19.567,19.557,178.907]
[1688343348838,20.0,19.567,19.557,21.628]
[1688343349316,20.0,19.576,19.557,21.628]
[1688343349519,20.0,19.576,19.558,55.0]
[1688343349718,25.63148,19.571,19.563,21.622]
[1688343350021,19.5,19.57,19.563,21.622]
[1688343354445,19.5,19.57,19.559,146.0824]
[1688343354621,19.5,19.57,19.563,21.621]
[1688343357125,19.5,19.57,19.563,77.287]
[1688343358440,19.5,19.57,19.563,21.621]
[1688343358736,19.5,19.57,19.563,21.622]
[1688343359331,19.5,19.57,19.562,21.623]
[1688343361850,19.5,19.57,19.561,21.624]
[1688343362155,19.5,19.57,19.55,22.03]
[1688343362156,55.0,19.569,19.56,21.625]
[1688343362334,20.0,19.568,19.56,21.625]
[1688343363640,25.63148,19.571,19.56,21.625]
[1688343363641,20.0,19.57,19.56,21.625]
[1688343365133,20.0,19.57,19.56,77.299]
[1688343365850,20.0,19.57,19.56,167.7095]
[1688343366428,25.63147974,19.577,19.56,77.299]
[1688343366741,25.63148,19.575,19.561,145.4105]
[1688343366940,25.63148,19.575,19.566,77.273]
[1688343367750,21.88,19.59,19.567,55.0]
[1688343367948,19.5,19.589,19.573,77.246]
[1688343368824,41.38,19.589,19.573,77.246]
[1688343369546,41.38,19.589,19.574,91.9416]
[1688343369744,41.38,19.589,19.578,21.605]
[1688343373332,41.38,19.589,19.574,102.77879922]
[1688343373333,19.5,19.589,19.582,21.601]
[1688343373536,20.0,19.599,19.582,21.601]
[1688343373736,21.76,19.591,19.582,21.601]
[1688343373947,20.0,19.59,19.582,21.601]
[1688343374937,20.0,19.59,19.582,77.213]
[1688343375253,21.76,19.591,19.582,77.213]
[1688343375459,47.27067074,19.6,19.582,77.213]
[1688343375460,25.51067074,19.6,19.582,77.213]
[1688343375751,47.270671,19.597,19.582,77.213]
[1688343375946,47.270671,19.597,19.587,21.595]
[1688343377053,26.19038594,19.607,19.587,21.595]
[1688343377553,48.325,19.61,19.587,21.595]
[1688343377753,26.68434501,19.606,19.587,21.595]
[1688343377934,20.0,19.605,19.587,21.595]
[1688343378138,20.0,19.606,19.587,21.595]
[1688343378339,26.68379676,19.605,19.587,21.595]
[1688343378536,48.325,19.607,19.593,77.169]
[1688343380159,55.0,19.606,19.593,77.169]
[1688343380565,48.325,19.607,19.593,77.169]
[1688343382258,355.9125,19.62,19.593,77.169]
[1688343382457,3.0,19.621,19.593,77.169]
[1688343382458,21.76,19.61,19.593,77.169]
[1688343382850,20.0,19.609,19.593,77.169]
[1688343383353,55.0,19.608,19.593,77.169]
[1688343384257,55.0,19.608,19.592,21.589]
[1688343384559,20.0,19.607,19.593,21.589]
[1688343384763,55.0,19.606,19.593,21.589]
[1688343385053,21.579,19.603,19.593,21.589]
[1688343385258,21.581,19.6,19.593,21.589]
[1688343385462,20.0,19.599,19.593,21.589]
[1688343386550,20.0,19.599,19.593,21.588]
[1688343386551,41.583,19.599,19.593,21.588]
[1688343386945,63.164,19.599,19.593,21.588]
[1688343388551,41.581,19.599,19.593,21.588]